[Event "Titled Tuesday Blitz November 2 2021"]
[White "Gaehwiler, Gabriel"]
[Black "Narayanan.S.L"]
[WhiteFideId "1314530"]
[BlackFideId "5058422"]
[WhiteElo "2320"]
[BlackElo "2570"]
[Result "0-1"]
[Round "07"]
[TimeControl "180+1"]
[Date "2021.11.02"]
[WhiteClock "0:00:01"]
[BlackClock "0:01:47"]

1. d4 {[%clk 0:03:00]}  d5 {[%clk 0:03:00]} 2. c4 {[%clk 0:03:01]}  c6 {[%clk 0:03:01]} 3. Nf3 {[%clk 0:03:01]}  Nf6 {[%clk 0:03:01]} 4. Nc3 {[%clk 0:03:01]}  a6 {[%clk 0:03:02]} 5. g3 {[%clk 0:03:00]}  g6 {[%clk 0:03:01]} 6. Bg2 {[%clk 0:02:59]}  Bg7 {[%clk 0:03:02]} 7. O-O {[%clk 0:02:57]}  O-O {[%clk 0:03:02]} 8. b3 {[%clk 0:02:57]}  Bg4 {[%clk 0:02:57]} 9. a4 {[%clk 0:02:46]}  Ne4 {[%clk 0:02:53]} 10. Bb2 {[%clk 0:02:45]}  Nxc3 {[%clk 0:02:52]} 11. Bxc3 {[%clk 0:02:46]}  Nd7 {[%clk 0:02:53]} 12. cxd5 {[%clk 0:02:37]}  cxd5 {[%clk 0:02:53]} 13. Ne1 {[%clk 0:02:34]}  Nf6 {[%clk 0:02:50]} 14. a5 {[%clk 0:02:32]}  h5 {[%clk 0:02:47]} 15. Nd3 {[%clk 0:02:29]}  h4 {[%clk 0:02:41]} 16. Nc5 {[%clk 0:02:28]}  hxg3 {[%clk 0:02:40]} 17. hxg3 {[%clk 0:02:27]}  Rb8 {[%clk 0:02:31]} 18. Qd3 {[%clk 0:02:19]}  Bd7 {[%clk 0:02:30]} 19. Rfc1 {[%clk 0:02:12]}  Bb5 {[%clk 0:02:30]} 20. Qf3 {[%clk 0:02:10]}  e6 {[%clk 0:02:31]} 21. Bb4 {[%clk 0:02:09]}  Re8 {[%clk 0:02:30]} 22. Rd1 {[%clk 0:02:01]}  Nd7 {[%clk 0:02:23]} 23. Nxd7 {[%clk 0:01:48]}  Qxd7 {[%clk 0:02:23]} 24. Bc5 {[%clk 0:01:45]}  Rbc8 {[%clk 0:02:22]} 25. Rac1 {[%clk 0:01:41]}  Qd8 {[%clk 0:02:05]} 26. Bb6 {[%clk 0:01:38]}  Qg5 {[%clk 0:02:04]} 27. Bc5 {[%clk 0:01:28]}  Bxd4 {[%clk 0:02:01]} 28. b4 {[%clk 0:01:02]}  Bxc5 {[%clk 0:02:01]} 29. bxc5 {[%clk 0:01:02]}  Rc7 {[%clk 0:02:00]} 30. e4 {[%clk 0:00:48]}  dxe4 {[%clk 0:01:58]} 31. Qxe4 {[%clk 0:00:48]}  Bc6 {[%clk 0:01:58]} 32. Qd4 {[%clk 0:00:43]}  Rec8 {[%clk 0:01:59]} 33. Rc3 {[%clk 0:00:36]}  Bxg2 {[%clk 0:01:53]} 34. Kxg2 {[%clk 0:00:36]}  Rxc5 {[%clk 0:01:54]} 35. Rh1 {[%clk 0:00:31]}  Qd5+ {[%clk 0:01:54]} 36. Qxd5 {[%clk 0:00:31]}  exd5 {[%clk 0:01:55]} 37. Rb3 {[%clk 0:00:29]}  R8c7 {[%clk 0:01:55]} 38. Re3 {[%clk 0:00:25]}  Rxa5 {[%clk 0:01:51]} 39. Re8+ {[%clk 0:00:23]}  Kg7 {[%clk 0:01:52]} 40. g4 {[%clk 0:00:21]}  d4 {[%clk 0:01:51]} 41. Rhh8 {[%clk 0:00:15]}  Rd5 {[%clk 0:01:47]} 42. f4 {[%clk 0:00:12]}  Kf6 {[%clk 0:01:47]} 43. Kf3 {[%clk 0:00:10]}  d3 {[%clk 0:01:47]} 44. g5+ {[%clk 0:00:10]}  Kf5 {[%clk 0:01:46]} 45. Rh1 {[%clk 0:00:03]}  d2 {[%clk 0:01:46]} 46. Rd1 {[%clk 0:00:01]}  Rc3+ {[%clk 0:01:46]} 47. Ke2 {[%clk 0:00:01]}  Kxf4 {[%clk 0:01:47]} 0-1


[Site "https://www.chess.com"]

[Event "Titled Tuesday Blitz November 2 2021"]
[White "Holt, Conrad"]
[Black "Provotorov, Ivan"]
[WhiteFideId "2034387"]
[BlackFideId "4154657"]
[WhiteElo "2586"]
[BlackElo "2291"]
[Result "1-0"]
[Round "07"]
[TimeControl "180+1"]
[Date "2021.11.02"]
[WhiteClock "0:00:49"]
[BlackClock "0:00:07"]

1. d4 {[%clk 0:03:00]}  d5 {[%clk 0:02:56]} 2. c4 {[%clk 0:03:01]}  c6 {[%clk 0:02:56]} 3. Nc3 {[%clk 0:03:01]}  Nf6 {[%clk 0:02:56]} 4. e3 {[%clk 0:03:01]}  Bf5 {[%clk 0:02:53]} 5. cxd5 {[%clk 0:02:56]}  cxd5 {[%clk 0:02:30]} 6. Qb3 {[%clk 0:02:56]}  Qd7 {[%clk 0:02:14]} 7. Nf3 {[%clk 0:02:54]}  Nc6 {[%clk 0:02:05]} 8. Ne5 {[%clk 0:02:53]}  Qc7 {[%clk 0:01:59]} 9. Bd2 {[%clk 0:02:53]}  e6 {[%clk 0:01:53]} 10. Rc1 {[%clk 0:02:47]}  Be7 {[%clk 0:01:47]} 11. Bb5 {[%clk 0:01:52]}  O-O {[%clk 0:01:42]} 12. Na4 {[%clk 0:01:48]}  Ne4 {[%clk 0:01:21]} 13. Bxc6 {[%clk 0:01:31]}  Nxd2 {[%clk 0:01:12]} 14. Qxb7 {[%clk 0:01:20]}  Qa5 {[%clk 0:01:01]} 15. Qxe7 {[%clk 0:01:12]}  Nf3+ {[%clk 0:00:20]} 16. Ke2 {[%clk 0:01:12]}  Nxe5 {[%clk 0:00:16]} 17. dxe5 {[%clk 0:01:09]}  Qa6+ {[%clk 0:00:13]} 18. Kf3 {[%clk 0:01:02]}  Rac8 {[%clk 0:00:12]} 19. Qb7 {[%clk 0:00:54]}  Qd3 {[%clk 0:00:07]} 20. Nc5 {[%clk 0:00:49]} 1-0


[Site "https://www.chess.com"]

[Event "Titled Tuesday Blitz November 2 2021"]
[White "Martinez Alcantara, Jose Eduardo"]
[Black "Mikhailovsky, Vladimir"]
[WhiteFideId "3805662"]
[BlackFideId "34105414"]
[WhiteElo "2690"]
[BlackElo "2402"]
[Result "1-0"]
[Round "07"]
[TimeControl "180+1"]
[Date "2021.11.02"]
[WhiteClock "0:00:09"]
[BlackClock "0:00:02"]

1. e4 {[%clk 0:03:00]}  c6 {[%clk 0:02:51]} 2. d4 {[%clk 0:03:00]}  d5 {[%clk 0:02:51]} 3. e5 {[%clk 0:03:01]}  Bf5 {[%clk 0:02:52]} 4. h4 {[%clk 0:03:01]}  h5 {[%clk 0:02:51]} 5. Bd3 {[%clk 0:03:02]}  Bxd3 {[%clk 0:02:51]} 6. Qxd3 {[%clk 0:03:02]}  e6 {[%clk 0:02:51]} 7. Nf3 {[%clk 0:03:01]}  Qa5+ {[%clk 0:02:51]} 8. Nbd2 {[%clk 0:02:58]}  Qa6 {[%clk 0:02:52]} 9. c4 {[%clk 0:02:58]}  Nd7 {[%clk 0:02:49]} 10. O-O {[%clk 0:02:58]}  Nb6 {[%clk 0:02:44]} 11. b3 {[%clk 0:02:55]}  Ne7 {[%clk 0:02:42]} 12. a4 {[%clk 0:02:36]}  Nf5 {[%clk 0:02:40]} 13. Ba3 {[%clk 0:02:35]}  Bxa3 {[%clk 0:02:34]} 14. Rxa3 {[%clk 0:02:36]}  Rd8 {[%clk 0:02:18]} 15. Qc3 {[%clk 0:02:29]}  dxc4 {[%clk 0:02:08]} 16. bxc4 {[%clk 0:02:26]}  O-O {[%clk 0:01:42]} 17. a5 {[%clk 0:02:04]}  Nd7 {[%clk 0:01:42]} 18. Ne4 {[%clk 0:02:03]}  c5 {[%clk 0:01:06]} 19. d5 {[%clk 0:02:02]}  exd5 {[%clk 0:01:06]} 20. cxd5 {[%clk 0:02:03]}  Qg6 {[%clk 0:01:07]} 21. Neg5 {[%clk 0:01:57]}  Nxh4 {[%clk 0:00:59]} 22. Nxh4 {[%clk 0:01:52]}  Qxg5 {[%clk 0:00:59]} 23. Nf3 {[%clk 0:01:53]}  Qf5 {[%clk 0:00:55]} 24. Qb2 {[%clk 0:01:40]}  b6 {[%clk 0:00:53]} 25. axb6 {[%clk 0:01:40]}  axb6 {[%clk 0:00:54]} 26. Ra7 {[%clk 0:01:40]}  Rfe8 {[%clk 0:00:54]} 27. Re1 {[%clk 0:01:40]}  Nf8 {[%clk 0:00:51]} 28. e6 {[%clk 0:01:35]}  Nxe6 {[%clk 0:00:26]} 29. dxe6 {[%clk 0:01:34]}  Rxe6 {[%clk 0:00:27]} 30. Rxe6 {[%clk 0:01:21]}  Qxe6 {[%clk 0:00:28]} 31. Qb1 {[%clk 0:01:20]}  Qf6 {[%clk 0:00:17]} 32. Rb7 {[%clk 0:01:14]}  g6 {[%clk 0:00:15]} 33. Rxb6 {[%clk 0:01:14]}  Rd1+ {[%clk 0:00:11]} 34. Qxd1 {[%clk 0:01:13]}  Qxb6 {[%clk 0:00:12]} 35. Qd5 {[%clk 0:01:10]}  Qb1+ {[%clk 0:00:11]} 36. Kh2 {[%clk 0:01:10]}  Qc1 {[%clk 0:00:11]} 37. g3 {[%clk 0:01:07]}  Qc2 {[%clk 0:00:10]} 38. Kg2 {[%clk 0:01:07]}  c4 {[%clk 0:00:09]} 39. Ne5 {[%clk 0:00:49]}  Qf5 {[%clk 0:00:08]} 40. Qd4 {[%clk 0:00:50]}  c3 {[%clk 0:00:07]} 41. Qxc3 {[%clk 0:00:50]}  Qe4+ {[%clk 0:00:08]} 42. Kg1 {[%clk 0:00:50]}  Qb1+ {[%clk 0:00:07]} 43. Kh2 {[%clk 0:00:48]}  Qf5 {[%clk 0:00:08]} 44. Qe3 {[%clk 0:00:44]}  Kg7 {[%clk 0:00:06]} 45. Nf3 {[%clk 0:00:45]}  Kg8 {[%clk 0:00:05]} 46. Ng5 {[%clk 0:00:44]}  Kg7 {[%clk 0:00:04]} 47. Nh3 {[%clk 0:00:44]}  Kg8 {[%clk 0:00:03]} 48. Nf4 {[%clk 0:00:45]}  Kg7 {[%clk 0:00:04]} 49. Qe8 {[%clk 0:00:43]}  h4 {[%clk 0:00:04]} 50. Qe2 {[%clk 0:00:39]}  hxg3+ {[%clk 0:00:04]} 51. fxg3 {[%clk 0:00:40]}  g5 {[%clk 0:00:04]} 52. Nh3 {[%clk 0:00:39]}  f6 {[%clk 0:00:04]} 53. Nf2 {[%clk 0:00:39]}  Kg6 {[%clk 0:00:04]} 54. Ng4 {[%clk 0:00:38]}  Kg7 {[%clk 0:00:03]} 55. Qe7+ {[%clk 0:00:38]}  Kg6 {[%clk 0:00:02]} 56. Qe8+ {[%clk 0:00:34]}  Kg7 {[%clk 0:00:03]} 57. Qe2 {[%clk 0:00:29]}  Kg6 {[%clk 0:00:02]} 58. Qd1 {[%clk 0:00:26]}  Kg7 {[%clk 0:00:02]} 59. Qd4 {[%clk 0:00:18]}  Kg6 {[%clk 0:00:02]} 60. Nf2 {[%clk 0:00:18]}  Kg7 {[%clk 0:00:03]} 61. g4 {[%clk 0:00:18]}  Qe6 {[%clk 0:00:03]} 62. Kg3 {[%clk 0:00:18]}  Kg6 {[%clk 0:00:03]} 63. Ne4 {[%clk 0:00:18]}  Kg7 {[%clk 0:00:04]} 64. Kf3 {[%clk 0:00:16]}  Kg6 {[%clk 0:00:04]} 65. Ng3 {[%clk 0:00:16]}  Kg7 {[%clk 0:00:04]} 66. Nf5+ {[%clk 0:00:15]}  Kg6 {[%clk 0:00:04]} 67. Qd3 {[%clk 0:00:14]}  Qc6+ {[%clk 0:00:04]} 68. Kg3 {[%clk 0:00:13]}  Qc7+ {[%clk 0:00:05]} 69. Kg2 {[%clk 0:00:12]}  Qf4 {[%clk 0:00:04]} 70. Ne3+ {[%clk 0:00:08]}  Kg7 {[%clk 0:00:04]} 71. Qd7+ {[%clk 0:00:08]}  Kg6 {[%clk 0:00:04]} 72. Qe8+ {[%clk 0:00:09]}  Kg7 {[%clk 0:00:04]} 73. Nf5+ {[%clk 0:00:09]}  Qxf5 {[%clk 0:00:02]} 74. gxf5 {[%clk 0:00:09]} 1-0


[Site "https://www.chess.com"]

[Event "Titled Tuesday Blitz November 2 2021"]
[White "Nesterov, Arseniy"]
[Black "Ovchinnikov, Vsevolod"]
[WhiteFideId "24198455"]
[BlackFideId "24176842"]
[WhiteElo "2494"]
[BlackElo "2376"]
[Result "1-0"]
[Round "07"]
[TimeControl "180+1"]
[Date "2021.11.02"]
[WhiteClock "0:00:09"]
[BlackClock "0:00:07"]

1. d4 {[%clk 0:03:00]}  Nf6 {[%clk 0:02:58]} 2. c4 {[%clk 0:03:01]}  g6 {[%clk 0:02:59]} 3. Nc3 {[%clk 0:03:01]}  d5 {[%clk 0:02:59]} 4. cxd5 {[%clk 0:03:02]}  Nxd5 {[%clk 0:03:00]} 5. e4 {[%clk 0:03:02]}  Nxc3 {[%clk 0:03:01]} 6. bxc3 {[%clk 0:03:03]}  Bg7 {[%clk 0:03:02]} 7. Qa4+ {[%clk 0:03:04]}  c6 {[%clk 0:03:01]} 8. Nf3 {[%clk 0:03:04]}  O-O {[%clk 0:03:01]} 9. Be2 {[%clk 0:03:04]}  Bg4 {[%clk 0:02:58]} 10. O-O {[%clk 0:03:02]}  Nd7 {[%clk 0:02:58]} 11. Bg5 {[%clk 0:02:59]}  h6 {[%clk 0:02:58]} 12. Bh4 {[%clk 0:02:59]}  Re8 {[%clk 0:02:52]} 13. h3 {[%clk 0:02:54]}  Bxf3 {[%clk 0:02:52]} 14. Bxf3 {[%clk 0:02:55]}  Qc7 {[%clk 0:02:51]} 15. e5 {[%clk 0:02:53]}  e6 {[%clk 0:02:50]} 16. Rab1 {[%clk 0:02:49]}  a6 {[%clk 0:02:37]} 17. Qc2 {[%clk 0:02:41]}  Rab8 {[%clk 0:02:33]} 18. Qe4 {[%clk 0:02:27]}  Qa5 {[%clk 0:02:10]} 19. Rb3 {[%clk 0:02:11]}  Bf8 {[%clk 0:01:52]} 20. Rfb1 {[%clk 0:02:05]}  Qc7 {[%clk 0:01:49]} 21. Bg3 {[%clk 0:01:57]}  Rec8 {[%clk 0:01:47]} 22. h4 {[%clk 0:01:57]}  b5 {[%clk 0:01:42]} 23. h5 {[%clk 0:01:55]}  g5 {[%clk 0:01:41]} 24. Be2 {[%clk 0:01:47]}  c5 {[%clk 0:01:29]} 25. Bd3 {[%clk 0:01:17]}  Bg7 {[%clk 0:01:28]} 26. Qh7+ {[%clk 0:01:17]}  Kf8 {[%clk 0:01:28]} 27. Be4 {[%clk 0:01:13]}  cxd4 {[%clk 0:00:53]} 28. cxd4 {[%clk 0:01:14]}  Qc4 {[%clk 0:00:47]} 29. Rd1 {[%clk 0:01:11]}  Qe2 {[%clk 0:00:38]} 30. Rbd3 {[%clk 0:00:44]}  Rc4 {[%clk 0:00:22]} 31. Bf3 {[%clk 0:00:40]}  Qc2 {[%clk 0:00:18]} 32. d5 {[%clk 0:00:37]}  Nc5 {[%clk 0:00:18]} 33. dxe6 {[%clk 0:00:27]}  Nxe6 {[%clk 0:00:18]} 34. Be4 {[%clk 0:00:24]}  Qa4 {[%clk 0:00:07]} 35. Bd5 {[%clk 0:00:20]}  Rd4 {[%clk 0:00:04]} 36. Bxe6 {[%clk 0:00:12]}  Qxd1+ {[%clk 0:00:02]} 37. Rxd1 {[%clk 0:00:12]}  Rxd1+ {[%clk 0:00:03]} 38. Kh2 {[%clk 0:00:13]}  fxe6 {[%clk 0:00:04]} 39. Qg6 {[%clk 0:00:13]}  Re8 {[%clk 0:00:03]} 40. f4 {[%clk 0:00:13]}  gxf4 {[%clk 0:00:02]} 41. Bxf4 {[%clk 0:00:14]}  Rd5 {[%clk 0:00:03]} 42. Bxh6 {[%clk 0:00:11]}  Bxh6 {[%clk 0:00:03]} 43. Qxh6+ {[%clk 0:00:12]}  Ke7 {[%clk 0:00:04]} 44. Qg7+ {[%clk 0:00:12]}  Kd8 {[%clk 0:00:04]} 45. h6 {[%clk 0:00:12]}  Rd7 {[%clk 0:00:05]} 46. Qf6+ {[%clk 0:00:12]}  Kc7 {[%clk 0:00:05]} 47. g4 {[%clk 0:00:12]}  Ree7 {[%clk 0:00:05]} 48. g5 {[%clk 0:00:12]}  Rf7 {[%clk 0:00:05]} 49. Qxe6 {[%clk 0:00:12]}  Rfe7 {[%clk 0:00:06]} 50. Qf6 {[%clk 0:00:11]}  Rf7 {[%clk 0:00:06]} 51. Qxa6 {[%clk 0:00:09]}  Rf2+ {[%clk 0:00:06]} 52. Kg3 {[%clk 0:00:09]}  Rfd2 {[%clk 0:00:06]} 53. Qa7+ {[%clk 0:00:09]}  Kc6 {[%clk 0:00:07]} 54. Qa6+ {[%clk 0:00:09]}  Kc5 {[%clk 0:00:07]} 55. Qa3+ {[%clk 0:00:09]}  b4 {[%clk 0:00:07]} 56. Qa5+ {[%clk 0:00:09]}  Kc4 {[%clk 0:00:07]} 57. Qa6+ {[%clk 0:00:09]}  Kc3 {[%clk 0:00:08]} 58. g6 {[%clk 0:00:09]}  R2d3+ {[%clk 0:00:07]} 59. Qxd3+ {[%clk 0:00:09]}  Rxd3+ {[%clk 0:00:07]} 60. Kg4 {[%clk 0:00:10]}  Rd1 {[%clk 0:00:06]} 61. h7 {[%clk 0:00:09]}  Rh1 {[%clk 0:00:07]} 62. g7 {[%clk 0:00:08]}  Rxh7 {[%clk 0:00:08]} 63. g8=Q {[%clk 0:00:08]}  Rc7 {[%clk 0:00:08]} 64. Qb3+ {[%clk 0:00:08]}  Kd4 {[%clk 0:00:07]} 65. Qxb4+ {[%clk 0:00:09]}  Kxe5 {[%clk 0:00:07]} 66. Qf4+ {[%clk 0:00:09]} 1-0


[Site "https://www.chess.com"]

[Event "Titled Tuesday Blitz November 2 2021"]
[White "Novik, Maxim"]
[Black "Yanchenko, Roman"]
[WhiteFideId "4102924"]
[BlackFideId "4137329"]
[WhiteElo "2316"]
[BlackElo "2514"]
[Result "0-1"]
[Round "07"]
[TimeControl "180+1"]
[Date "2021.11.02"]
[WhiteClock "0:00:06"]
[BlackClock "0:01:23"]

1. d4 {[%clk 0:03:00]}  d5 {[%clk 0:03:00]} 2. c4 {[%clk 0:03:00]}  c6 {[%clk 0:03:00]} 3. Nc3 {[%clk 0:03:01]}  Nf6 {[%clk 0:02:59]} 4. Nf3 {[%clk 0:03:01]}  g6 {[%clk 0:02:59]} 5. Bf4 {[%clk 0:02:59]}  Bg7 {[%clk 0:03:00]} 6. e3 {[%clk 0:03:00]}  O-O {[%clk 0:03:00]} 7. h3 {[%clk 0:03:00]}  a6 {[%clk 0:03:00]} 8. Rc1 {[%clk 0:03:00]}  h6 {[%clk 0:02:59]} 9. Be2 {[%clk 0:02:45]}  Kh7 {[%clk 0:02:58]} 10. O-O {[%clk 0:02:44]}  Bf5 {[%clk 0:02:58]} 11. cxd5 {[%clk 0:02:39]}  Nxd5 {[%clk 0:02:58]} 12. Qb3 {[%clk 0:02:37]}  Nxc3 {[%clk 0:02:55]} 13. bxc3 {[%clk 0:02:37]}  b5 {[%clk 0:02:54]} 14. Ne5 {[%clk 0:02:32]}  Be6 {[%clk 0:02:51]} 15. Qb1 {[%clk 0:02:29]}  Qb6 {[%clk 0:02:45]} 16. c4 {[%clk 0:02:25]}  Nd7 {[%clk 0:02:42]} 17. c5 {[%clk 0:01:45]}  Qb7 {[%clk 0:02:39]} 18. Nf3 {[%clk 0:01:42]}  a5 {[%clk 0:02:35]} 19. e4 {[%clk 0:01:41]}  Nf6 {[%clk 0:02:35]} 20. Rfd1 {[%clk 0:01:36]}  Rfd8 {[%clk 0:02:31]} 21. d5 {[%clk 0:01:14]}  cxd5 {[%clk 0:02:30]} 22. c6 {[%clk 0:01:13]}  Qa7 {[%clk 0:02:24]} 23. c7 {[%clk 0:01:09]}  Rdc8 {[%clk 0:02:21]} 24. Nd4 {[%clk 0:01:01]}  Nxe4 {[%clk 0:02:19]} 25. Be3 {[%clk 0:00:38]}  Bxd4 {[%clk 0:02:18]} 26. Bxd4 {[%clk 0:00:36]}  Qb7 {[%clk 0:02:18]} 27. f3 {[%clk 0:00:24]}  Nd6 {[%clk 0:02:15]} 28. Qc2 {[%clk 0:00:17]}  Nc4 {[%clk 0:01:46]} 29. Bxc4 {[%clk 0:00:17]}  dxc4 {[%clk 0:01:43]} 30. Qe2 {[%clk 0:00:17]}  Qxc7 {[%clk 0:01:40]} 31. h4 {[%clk 0:00:16]}  h5 {[%clk 0:01:33]} 32. Be5 {[%clk 0:00:15]}  Qc5+ {[%clk 0:01:33]} 33. Bd4 {[%clk 0:00:14]}  Qf5 {[%clk 0:01:32]} 34. Be5 {[%clk 0:00:13]}  Rd8 {[%clk 0:01:28]} 35. Kh2 {[%clk 0:00:12]}  b4 {[%clk 0:01:27]} 36. Re1 {[%clk 0:00:08]}  c3 {[%clk 0:01:25]} 37. Qe3 {[%clk 0:00:08]}  Rd2 {[%clk 0:01:23]} 38. Rcd1 {[%clk 0:00:06]}  Qh3+ {[%clk 0:01:23]} 0-1


[Site "https://www.chess.com"]

[Event "Titled Tuesday Blitz November 2 2021"]
[White "Pichot, Alan"]
[Black "Rasulov, Vugar"]
[WhiteFideId "110973"]
[BlackFideId "13402390"]
[WhiteElo "2600"]
[BlackElo "2560"]
[Result "1/2-1/2"]
[Round "07"]
[TimeControl "180+1"]
[Date "2021.11.02"]
[WhiteClock "0:00:26"]
[BlackClock "0:00:26"]

1. e4 {[%clk 0:03:00]}  c5 {[%clk 0:02:59]} 2. Nf3 {[%clk 0:03:01]}  d6 {[%clk 0:03:00]} 3. d4 {[%clk 0:03:01]}  cxd4 {[%clk 0:03:01]} 4. Nxd4 {[%clk 0:03:02]}  Nf6 {[%clk 0:03:01]} 5. Nc3 {[%clk 0:03:02]}  a6 {[%clk 0:03:02]} 6. Bg5 {[%clk 0:03:02]}  Nbd7 {[%clk 0:03:01]} 7. Bc4 {[%clk 0:03:02]}  Qa5 {[%clk 0:02:59]} 8. Qd2 {[%clk 0:03:01]}  e6 {[%clk 0:02:59]} 9. O-O-O {[%clk 0:03:00]}  Nc5 {[%clk 0:02:55]} 10. Rhe1 {[%clk 0:02:56]}  Be7 {[%clk 0:02:52]} 11. f4 {[%clk 0:02:56]}  h6 {[%clk 0:02:47]} 12. Bxf6 {[%clk 0:02:52]}  Bxf6 {[%clk 0:02:48]} 13. Nb3 {[%clk 0:02:45]}  Nxb3+ {[%clk 0:02:44]} 14. Bxb3 {[%clk 0:02:43]}  O-O {[%clk 0:02:33]} 15. Kb1 {[%clk 0:02:29]}  Bxc3 {[%clk 0:02:33]} 16. Qxc3 {[%clk 0:02:19]}  Qxc3 {[%clk 0:02:33]} 17. bxc3 {[%clk 0:02:20]}  Rd8 {[%clk 0:02:33]} 18. e5 {[%clk 0:02:20]}  d5 {[%clk 0:02:15]} 19. c4 {[%clk 0:02:20]}  d4 {[%clk 0:02:06]} 20. Re4 {[%clk 0:02:17]}  Kf8 {[%clk 0:02:06]} 21. Rexd4 {[%clk 0:02:17]}  Rxd4 {[%clk 0:02:07]} 22. Rxd4 {[%clk 0:02:17]}  Ke7 {[%clk 0:02:08]} 23. Ba4 {[%clk 0:02:18]}  Rb8 {[%clk 0:02:01]} 24. Kb2 {[%clk 0:02:13]}  f6 {[%clk 0:01:42]} 25. Kc3 {[%clk 0:02:07]}  b5 {[%clk 0:01:39]} 26. cxb5 {[%clk 0:02:06]}  axb5 {[%clk 0:01:40]} 27. Bb3 {[%clk 0:02:07]}  Bd7 {[%clk 0:01:32]} 28. exf6+ {[%clk 0:02:01]}  gxf6 {[%clk 0:01:32]} 29. Kb4 {[%clk 0:02:01]}  h5 {[%clk 0:01:31]} 30. Rd3 {[%clk 0:01:51]}  h4 {[%clk 0:01:26]} 31. g3 {[%clk 0:01:39]}  hxg3 {[%clk 0:01:19]} 32. hxg3 {[%clk 0:01:40]}  Rh8 {[%clk 0:01:18]} 33. Re3 {[%clk 0:01:40]}  Kd6 {[%clk 0:01:16]} 34. Rd3+ {[%clk 0:01:40]}  Ke7 {[%clk 0:01:16]} 35. c3 {[%clk 0:01:32]}  Rh2 {[%clk 0:01:14]} 36. a4 {[%clk 0:01:31]}  bxa4 {[%clk 0:01:10]} 37. Bxa4 {[%clk 0:01:31]}  Bxa4 {[%clk 0:01:04]} 38. Kxa4 {[%clk 0:01:32]}  e5 {[%clk 0:01:04]} 39. fxe5 {[%clk 0:01:29]}  fxe5 {[%clk 0:01:05]} 40. Kb5 {[%clk 0:01:29]}  Ke6 {[%clk 0:01:04]} 41. c4 {[%clk 0:01:30]}  e4 {[%clk 0:01:02]} 42. Rc3 {[%clk 0:01:27]}  Rb2+ {[%clk 0:00:59]} 43. Kc6 {[%clk 0:01:22]}  Ke5 {[%clk 0:00:58]} 44. c5 {[%clk 0:01:16]}  Rd2 {[%clk 0:00:42]} 45. Kb7 {[%clk 0:01:10]}  Rd7+ {[%clk 0:00:38]} 46. Kb6 {[%clk 0:01:08]}  Rd3 {[%clk 0:00:38]} 47. Rc1 {[%clk 0:00:49]}  Rb3+ {[%clk 0:00:37]} 48. Ka5 {[%clk 0:00:45]}  Ra3+ {[%clk 0:00:26]} 49. Kb5 {[%clk 0:00:42]}  Rb3+ {[%clk 0:00:26]} 50. Ka5 {[%clk 0:00:29]}  Ra3+ {[%clk 0:00:26]} 51. Kb5 {[%clk 0:00:26]}  Rb3+ {[%clk 0:00:26]} 52. Ka5 {[%clk 0:00:26]} 1/2-1/2


[Site "https://www.chess.com"]